lending/lending_fUSD_20250508
["ID","MTS","AMOUNT","RATE_DAILY","PERIOD"]
[360308825,1746738644453,-150.0,0.00024096,4]
[360308827,1746738644462,-150.0,0.00024106,4]
[360308829,1746738644472,-256.26268918,0.00024115,4]
[360308831,1746738644482,-169.2183201,0.00024115,4]
[360308833,1746738644492,-150.0,0.00024129,4]
[360308835,1746738644501,-150.0,0.00024131,4]
[360308837,1746738644511,-256.26268918,0.00024142,4]
[360308839,1746738644520,-169.2183201,0.00024142,4]
[360308841,1746738644530,-150.0,0.00024152,4]
[360308843,1746738644539,-150.0,0.00024163,4]
[360308845,1746738644548,-256.26268918,0.00024168,4]
[360308847,1746738644558,-169.2183201,0.00024168,4]
[360308849,1746738644568,-150.0,0.00024172,4]
[360308851,1746738644578,-150.0,0.00024179,4]
[360308853,1746738644589,-150.0,0.00024183,4]
[360308855,1746738644598,-256.26268918,0.00024195,4]
[360308857,1746738644607,-169.2183201,0.00024195,4]
[360308859,1746738644617,-150.0,0.00024196,4]
[360308861,1746738644627,-85043.0,0.000242,2]
[360308863,1746738644636,-256.26268918,0.00024222,4]
[360308865,1746738644645,-169.2183201,0.00024222,4]
[360308867,1746738644655,-150.0,0.00024223,4]
[360308869,1746738644665,-150.0,0.00024227,4]
[360308871,1746738644674,-150.0,0.0002423,4]
[360308873,1746738644685,-256.26268918,0.00024249,4]
[360308875,1746738644694,-169.2183201,0.00024249,4]
[360308877,1746738644703,-150.0,0.00024261,4]
[360308879,1746738644713,-150.0,0.00024263,4]
[360308881,1746738644722,-256.26268918,0.00024275,4]
[360308883,1746738644731,-169.2183201,0.00024275,4]
[360308885,1746738644741,-150.0,0.00024275,4]
[360308887,1746738644750,-150.0,0.00024275,4]
[360308889,1746738644760,-150.0,0.00024295,4]
[360308891,1746738644770,-150.0,0.00024297,4]
[360308893,1746738644780,-256.26268918,0.00024302,4]
[360308895,1746738644790,-169.2183201,0.00024302,4]
[360308897,1746738644799,-150.0,0.00024323,4]
[360308899,1746738644809,-256.26268918,0.00024329,4]
[360308901,1746738644818,-169.2183201,0.00024329,4]
[360308903,1746738644828,-150.0,0.0002433,4]
[360308905,1746738644837,-150.0,0.00024339,4]
[360308907,1746738644846,-256.26268918,0.00024355,4]
[360308909,1746738644856,-169.2183201,0.00024355,4]
[360308911,1746738644866,-150.0,0.00024361,4]
[360308913,1746738644876,-150.0,0.00024363,4]
[360308915,1746738644885,-150.0,0.00024366,4]
[360308917,1746738644895,-150.0,0.00024371,4]
[360308919,1746738644905,-256.26268918,0.00024382,4]
[360308921,1746738644914,-169.2183201,0.00024382,4]
[360308923,1746738644923,-150.0,0.00024382,4]
[360308925,1746738644935,-150.0,0.00024382,4]
[360308927,1746738644945,-150.0,0.00024397,4]
[360308929,1746738644955,-256.26268918,0.00024409,4]
[360308931,1746738644964,-169.2183201,0.00024409,4]
[360308933,1746738644974,-150.0,0.00024417,4]
[360308935,1746738644983,-150.0,0.00024419,4]
[360308937,1746738644993,-150.0,0.0002443,4]
[360308939,1746738645003,-256.26268918,0.00024435,4]
[360308941,1746738645012,-169.2183201,0.00024435,4]
[360308943,1746738645022,-150.0,0.00024438,4]
[360308945,1746738645031,-150.0,0.00024455,4]
[360308947,1746738645042,-256.26268918,0.00024462,4]
[360308949,1746738645051,-169.2183201,0.00024462,4]
[360308951,1746738645062,-150.0,0.00024464,4]
[360308953,1746738645072,-150.0,0.00024467,4]
[360308955,1746738645082,-256.26268918,0.00024489,4]
[360308957,1746738645092,-169.2183201,0.00024489,4]
[360308959,1746738645101,-150.0,0.00024494,4]
[360308961,1746738645111,-150.0,0.00024497,4]
[360308963,1746738645121,-8238.93524659,0.000245,2]
[360308965,1746738645132,-150.0,0.00024509,4]
[360308968,1746738645142,-256.26268918,0.00024516,4]
[360308970,1746738645153,-169.2183201,0.00024516,4]
[360308972,1746738645163,-150.0,0.00024516,4]
[360308975,1746738645172,-150.0,0.00024516,4]
[360308977,1746738645185,-150.0,0.00024531,4]
[360308981,1746738645196,-256.26268918,0.00024542,4]
[360308983,1746738645205,-169.2183201,0.00024542,4]
[360308986,1746738645218,-150.0,0.0002455,4]
[360308989,1746738645228,-150.0,0.00024564,4]
[360308991,1746738645237,-150.0,0.00024564,4]
[360308993,1746738645247,-256.26268918,0.00024569,4]
[360308995,1746738645259,-169.2183201,0.00024569,4]
[360308997,1746738645269,-150.0,0.00024572,4]
[360308999,1746738645279,-150.0,0.00024581,4]
[360309001,1746738645291,-256.26268918,0.00024596,4]
[360309003,1746738645302,-169.2183201,0.00024596,4]
[360309005,1746738645312,-150.0,0.00024598,4]
[360309007,1746738645322,-49433.22,0.000246,2]
[360309009,1746738645332,-150.0,0.00024612,4]
[360309012,1746738645342,-256.26268918,0.00024622,4]
[360309014,1746738645352,-169.2183201,0.00024622,4]
[360309016,1746738645362,-150.0,0.00024631,4]
[360309018,1746738645371,-256.26268918,0.00024649,4]
[360309019,1746738645381,-169.2183201,0.00024649,4]
[360309022,1746738645391,-150.0,0.0002465,4]
[360309024,1746738645400,-150.0,0.00024652,4]
[360309025,1746738645410,-277.0,0.00024658,7]
[360309028,1746738645420,-222.0,0.00024658,7]
[360309029,1746738645432,-150.0,0.0002466,4]
[360309032,1746738645442,-150.0,0.00024665,4]
[360309034,1746738645455,-256.26268918,0.00024676,4]
[360309036,1746738645465,-169.2183201,0.00024676,4]
[360309038,1746738645475,-150.0,0.00024676,4]
[360309040,1746738645486,-150.0,0.00024676,4]
[360309042,1746738645495,-150.0,0.00024698,4]
[360309043,1746738645506,-167.38850893,0.000247,2]
[360309046,1746738645516,-5562.0,0.000247,3]
[360309047,1746738645526,-2200.0,0.000247,9]
[360309050,1746738645536,-256.26268918,0.00024703,4]
[360309052,1746738645546,-169.2183201,0.00024703,4]
[360309054,1746738645558,-150.0,0.00024708,4]
[360309056,1746738645569,-150.0,0.00024723,4]
[360309058,1746738645579,-1000.0,0.00024724,3]
[360309060,1746738645589,-150.0,0.00024728,4]
[360309062,1746738645600,-256.26268918,0.00024729,4]
[360309064,1746738645609,-169.2183201,0.00024729,4]
[360309066,1746738645619,-150.0,0.00024732,4]
[360309093,1746738645866,-150.0,0.00024739,4]
[360309096,1746738645890,-9527.55282782,0.00024748,2]
[360309098,1746738645901,-256.26268918,0.00024756,4]
[360309100,1746738645910,-169.2183201,0.00024756,4]
[360309102,1746738645920,-150.0,0.00024756,4]
[360309104,1746738645933,-150.0,0.00024756,4]
[360309106,1746738645942,-150.0,0.00024765,4]
[360309109,1746738645952,-503.85916262,0.00024773,2]
[360309111,1746738645961,-388.45193328,0.00024773,2]
[360309113,1746738645971,-15421.67043948,0.00024776,2]
[360309115,1746738645981,-256.26268918,0.00024783,4]
[360309116,1746738645991,-169.2183201,0.00024783,4]
[360309119,1746738646002,-172.40848292,0.0002479,2]
[360309121,1746738646011,-150.0,0.00024795,4]
[360309123,1746738646021,-150.0,0.00024799,4]
[360309125,1746738646031,-192.40018308,0.00024799,2]
[360309127,1746738646041,-3300.0,0.000248,9]
[360309129,1746738646051,-294208.364966,0.000248,3]
[360309131,1746738646061,-151.0,0.000248,7]
[360309133,1746738646071,-151.0,0.000248,7]
[360309135,1746738646081,-151.0,0.000248,7]
[360309137,1746738646091,-251.539171,0.000248,7]
[360309139,1746738646105,-150.0,0.00024804,4]
[360309141,1746738646116,-150.0,0.00024805,4]
[360309143,1746738646126,-256.26268918,0.00024809,4]
[360309145,1746738646136,-169.2183201,0.00024809,4]
[360309147,1746738646146,-150.0,0.00024832,4]
[360309150,1746738646157,-256.26268918,0.00024836,4]
[360309152,1746738646167,-169.2183201,0.00024836,4]
[360309154,1746738646178,-150.0,0.00024852,4]
[360309156,1746738646190,-256.26268918,0.00024863,4]
[360309158,1746738646201,-169.2183201,0.00024863,4]
[360309160,1746738646214,-227.01912571,0.00024865,2]
[360309162,1746738646225,-150.0,0.00024865,4]
[360309164,1746738646235,-150.0,0.00024866,4]
[360309166,1746738646246,-150.0,0.00024883,4]
[360309168,1746738646257,-662284.70030644,0.00024889,2]
[360309264,1746738647320,-5112.97,0.00024889,2]
[360309267,1746738647333,-602.7,0.00024889,2]
[360309300,1746738647647,-304.152,0.00024889,2]
[360309303,1746738647667,-5652.8792148,0.00024889,2]
[360309336,1746738647992,-88.06793441,0.00044016,120]
[360309341,1746738648037,-418.90958042,0.00044016,120]
[360309345,1746738648084,-400.0,0.00044016,120]
[360309349,1746738648128,-400.0,0.00044016,120]
[360309353,1746738648170,-400.0,0.00044016,120]
[360309357,1746738648216,-400.0,0.00044016,120]
[360309361,1746738648260,-400.0,0.00044016,120]
[360309365,1746738648306,-396.84656378,0.00044016,120]
[360309370,1746738648350,-400.0,0.00044016,120]
[360309374,1746738648393,-475.17027446,0.00044016,120]
[360309378,1746738648441,-400.0,0.00044016,120]
[360309383,1746738648483,-400.0,0.00044016,120]
[360309387,1746738648527,-400.0,0.00044016,120]
[360309392,1746738648570,-455.92585973,0.00044016,120]
[360309396,1746738648612,-400.0,0.00044016,120]
[360309401,1746738648654,-400.0,0.00044016,120]
[360309405,1746738648695,-400.0,0.00044016,120]
[360309410,1746738648737,-400.0,0.00044016,120]
[360309414,1746738648779,-400.0,0.00044016,120]
[360309419,1746738648822,-400.0,0.00044016,120]
[360309424,1746738648864,-400.0,0.00044016,120]
[360309428,1746738648906,-400.0,0.00044016,120]
[360309432,1746738648950,-400.0,0.00044016,120]
[360309437,1746738648993,-450.0,0.00044016,120]
[360309441,1746738649038,-400.0,0.00044016,120]
[360309446,1746738649085,-400.0,0.00044016,120]
[360309450,1746738649131,-400.0,0.00044016,120]
[360309453,1746738649175,-400.0,0.00044016,120]
[360309457,1746738649224,-400.0,0.00044016,120]
[360309461,1746738649267,-400.0,0.00044016,120]
[360309465,1746738649310,-400.0,0.00044016,120]
[360309469,1746738649355,-400.0,0.00044016,120]
[360309473,1746738649401,-400.0,0.00044016,120]
[360309477,1746738649445,-400.0,0.00044016,120]
[360309482,1746738649490,-400.0,0.00044016,120]
[360309486,1746738649533,-400.0,0.00044016,120]
[360309490,1746738649575,-400.0,0.00044016,120]
[360309491,1746738649617,-400.0,0.00044016,120]
[360309492,1746738649658,-400.0,0.00044016,120]
[360309493,1746738649699,-400.0,0.00044016,120]
[360309494,1746738649745,-400.0,0.00044016,120]
[360309496,1746738649787,-500.0,0.00044016,120]
[360309501,1746738649834,-400.0,0.00044016,120]
[360309506,1746738649881,-400.0,0.00044016,120]
[360309512,1746738649926,-400.0,0.00044016,120]
[360309518,1746738649974,-400.0,0.00044016,120]
[360309523,1746738650018,-400.0,0.00044016,120]
[360309529,1746738650063,-400.0,0.00044016,120]
[360309534,1746738650105,-457.73590577,0.00044016,120]
[360309539,1746738650147,-400.0,0.00044016,120]
[360309544,1746738650190,-400.0,0.00044016,120]
[360309550,1746738650239,-400.0,0.00044016,120]
[360309556,1746738650286,-400.0,0.00044016,120]
[360309561,1746738650331,-400.0,0.00044016,120]
[360309567,1746738650376,-400.0,0.00044016,120]
[360309572,1746738650422,-400.0,0.00044016,120]
[360309578,1746738650470,-400.0,0.00044016,120]
[360309583,1746738650515,-400.0,0.00044016,120]
[360309588,1746738650559,-400.0,0.00044016,120]
[360309594,1746738650605,-436.16813431,0.00044016,120]
[360309599,1746738650650,-400.0,0.00044016,120]
[360309605,1746738650695,-400.0,0.00044016,120]
[360309611,1746738650741,-400.0,0.00044016,120]
[360309616,1746738650786,-400.0,0.00044016,120]
[360309621,1746738650828,-400.0,0.00044016,120]
[360309626,1746738650870,-470.52013965,0.00044016,120]
[360309632,1746738650913,-238.89938789,0.00044016,120]
[360309637,1746738650958,-400.0,0.00044016,120]
[360309642,1746738650999,-400.0,0.00044016,120]
[360309649,1746738651053,-400.0,0.00044016,120]
[360309654,1746738651099,-400.0,0.00044016,120]
[360309660,1746738651141,-400.0,0.00044016,120]
[360309666,1746738651188,-400.0,0.00044016,120]
[360309671,1746738651234,-506.069623,0.00044016,120]
[360309677,1746738651278,-400.0,0.00044016,120]
[360309682,1746738651324,-400.0,0.00044016,120]
[360309688,1746738651371,-549.24703589,0.00044016,120]
[360309694,1746738651418,-400.0,0.00044016,120]
[360309699,1746738651464,-400.0,0.00044016,120]
[360309704,1746738651507,-596.1,0.00044016,120]
[360309710,1746738651552,-400.0,0.00044016,120]
[360309716,1746738651597,-400.0,0.00044016,120]
[360309721,1746738651640,-400.0,0.00044016,120]
[360309727,1746738651685,-596.1,0.00044016,120]
[360309732,1746738651729,-400.0,0.00044016,120]
[360309737,1746738651773,-400.0,0.00044016,120]
[360309743,1746738651818,-400.0,0.00044016,120]
[360309749,1746738651863,-596.1,0.00044016,120]
[360309754,1746738651908,-400.0,0.00044016,120]
[360309760,1746738651951,-400.0,0.00044016,120]
[360309765,1746738651995,-400.0,0.00044016,120]
[360309770,1746738652038,-596.1,0.00044016,120]
[360309776,1746738652082,-400.0,0.00044016,120]
[360309781,1746738652125,-400.0,0.00044016,120]
[360309787,1746738652167,-400.0,0.00044016,120]
[360309792,1746738652212,-400.0,0.00044016,120]
[360309798,1746738652259,-400.0,0.00044016,120]
[360309803,1746738652306,-596.1,0.00044016,120]
[360309809,1746738652352,-400.0,0.00044016,120]
[360309815,1746738652398,-400.0,0.00044016,120]
[360309820,1746738652443,-400.0,0.00044016,120]
[360309826,1746738652491,-400.0,0.00044016,120]
[360309832,1746738652536,-164.06064169,0.00044016,120]
[360309837,1746738652580,-596.1,0.00044016,120]
[360309843,1746738652623,-400.0,0.00044016,120]
[360309848,1746738652667,-400.0,0.00044016,120]
[360309854,1746738652712,-400.0,0.00044016,120]
[360309859,1746738652755,-400.0,0.00044016,120]
[360309865,1746738652799,-596.1,0.00044016,120]
[360309870,1746738652844,-400.0,0.00044016,120]
[360309876,1746738652891,-400.0,0.00044016,120]
[360309878,1746738652938,-400.0,0.00044016,120]
[360309879,1746738652983,-177.84,0.00044016,120]
[360309880,1746738653027,-596.1,0.00044016,120]
[360309885,1746738653071,-400.0,0.00044016,120]
[360309891,1746738653115,-308.36360859,0.00044016,120]
[360309896,1746738653159,-233.16717183,0.00044016,120]
[360309902,1746738653206,-596.1,0.00044016,120]
[360309908,1746738653254,-362.86064831,0.00044016,120]
[360309913,1746738653299,-596.1,0.00044016,120]
[360309918,1746738653344,-596.1,0.00044016,120]
[360309924,1746738653389,-596.1,0.00044016,120]
[360309930,1746738653433,-596.1,0.00044016,120]
[360309935,1746738653477,-596.1,0.00044016,120]
[360309941,1746738653520,-596.1,0.00044016,120]
[360309946,1746738653563,-400.0,0.00044016,120]
[360309951,1746738653606,-596.1,0.00044016,120]
[360309957,1746738653648,-400.0,0.00044016,120]
[360309962,1746738653691,-596.1,0.00044016,120]
[360309968,1746738653738,-400.0,0.00044016,120]
[360309974,1746738653785,-596.1,0.00044016,120]
[360309980,1746738653832,-269.51694339,0.00044016,120]
[360309986,1746738653880,-400.0,0.00044016,120]
[360309992,1746738653928,-504.55454813,0.00044016,120]
[360309998,1746738653978,-596.1,0.00044016,120]
[360310004,1746738654026,-596.1,0.00044016,120]
[360310009,1746738654073,-400.0,0.00044016,120]
[360310015,1746738654123,-400.0,0.00044016,120]
[360310021,1746738654173,-596.1,0.00044016,120]
[360310026,1746738654231,-596.1,0.00044016,120]
[360310032,1746738654282,-400.0,0.00044016,120]
[360310038,1746738654329,-274.19062746,0.00044016,120]
[360310044,1746738654377,-400.0,0.00044016,120]
[360310050,1746738654423,-515.67914171,0.00044016,120]
[360310055,1746738654472,-400.0,0.00044016,120]
[360310061,1746738654520,-400.0,0.00044016,120]
[360310068,1746738654574,-400.0,0.00044016,120]
[360310074,1746738654623,-400.0,0.00044016,120]
[360310080,1746738654671,-400.0,0.00044016,120]
[360310086,1746738654721,-400.0,0.00044016,120]
[360310092,1746738654770,-400.0,0.00044016,120]
[360310098,1746738654820,-400.0,0.00044016,120]
[360310104,1746738654870,-400.0,0.00044016,120]
[360310111,1746738654921,-400.0,0.00044016,120]
[360310113,1746738654976,-496.15403073,0.00044016,120]
[360310119,1746738655027,-483.82938109,0.00044016,120]
[360310126,1746738655076,-400.0,0.00044016,120]
[360310132,1746738655125,-235.86560407,0.00044016,120]
[360310138,1746738655177,-400.0,0.00044016,120]
[360310144,1746738655228,-596.1,0.00044016,120]
[360310150,1746738655275,-400.0,0.00044016,120]
[360310155,1746738655323,-400.0,0.00044016,120]
[360310162,1746738655376,-400.0,0.00044016,120]
[360310168,1746738655422,-400.0,0.00044016,120]
[360310173,1746738655471,-596.28230002,0.00044016,120]
[360310179,1746738655520,-400.0,0.00044016,120]
[360310185,1746738655567,-189.51266543,0.00044016,120]
[360310191,1746738655614,-400.0,0.00044016,120]
[360310237,1746738656039,-500.0,0.00044016,120]
[360310246,1746738656115,-400.0,0.00044016,120]
[360310251,1746738656156,-400.0,0.00044016,120]
[360310256,1746738656199,-528.45391578,0.00044016,120]
[360310262,1746738656247,-400.0,0.00044016,120]
[360310267,1746738656292,-400.0,0.00044016,120]
[360310273,1746738656337,-400.0,0.00044016,120]
[360310278,1746738656381,-495.04027898,0.00044016,120]
[360310283,1746738656423,-400.0,0.00044016,120]
[360310288,1746738656465,-400.0,0.00044016,120]
[360310293,1746738656507,-400.0,0.00044016,120]
[360310298,1746738656549,-400.0,0.00044016,120]
[360310304,1746738656590,-400.0,0.00044016,120]
[360310308,1746738656630,-400.0,0.00044016,120]
[360310313,1746738656670,-400.0,0.00044016,120]
[360310318,1746738656709,-157.55470202,0.00044016,120]
[360310323,1746738656748,-400.0,0.00044016,120]
[360310328,1746738656789,-320.0,0.00044016,120]
[360310333,1746738656829,-400.0,0.00044016,120]
[360310338,1746738656870,-400.0,0.00044016,120]
[360310343,1746738656910,-400.0,0.00044016,120]
[360310348,1746738656952,-400.0,0.00044016,120]
[360310353,1746738656993,-400.0,0.00044016,120]
[360310358,1746738657033,-400.0,0.00044016,120]
[360310363,1746738657073,-400.0,0.00044016,120]
[360310368,1746738657112,-483.58958922,0.00044016,120]
[360310373,1746738657152,-400.0,0.00044016,120]
[360310378,1746738657193,-150.0,0.00044016,120]
[360310383,1746738657234,-400.0,0.00044016,120]
[360310388,1746738657276,-400.0,0.00044016,120]
[360310394,1746738657319,-400.0,0.00044016,120]
[360310398,1746738657358,-447.85638106,0.00044016,120]
[360310404,1746738657400,-400.0,0.00044016,120]
[360310409,1746738657444,-400.0,0.00044016,120]
[360310414,1746738657485,-400.0,0.00044016,120]
[360310419,1746738657526,-400.0,0.00044016,120]
[360310424,1746738657566,-400.0,0.00044016,120]
[360310429,1746738657606,-400.0,0.00044016,120]
[360310434,1746738657645,-190.24359674,0.00044016,120]
[360310438,1746738657684,-400.0,0.00044016,120]
[360310439,1746738657723,-400.0,0.00044016,120]
[360310440,1746738657761,-400.0,0.00044016,120]
[360310442,1746738657802,-400.0,0.00044016,120]
[360310447,1746738657841,-400.0,0.00044016,120]
[360310452,1746738657881,-400.0,0.00044016,120]
[360310457,1746738657920,-212.92228683,0.00044016,120]
[360310463,1746738657963,-156.16,0.00044016,120]
[360310468,1746738658004,-400.0,0.00044016,120]
[360310473,1746738658044,-400.0,0.00044016,120]
[360310479,1746738658086,-400.0,0.00044016,120]
[360310484,1746738658127,-400.0,0.00044016,120]
[360310490,1746738658167,-400.0,0.00044016,120]
[360310495,1746738658213,-400.0,0.00044016,120]
[360310500,1746738658255,-400.0,0.00044016,120]
[360310505,1746738658296,-400.0,0.00044016,120]
[360310511,1746738658339,-473.04177596,0.00044016,120]
[360310516,1746738658382,-400.0,0.00044016,120]
[360310522,1746738658426,-400.0,0.00044016,120]
[360310527,1746738658471,-400.0,0.00044016,120]
[360310533,1746738658514,-400.0,0.00044016,120]
[360310538,1746738658557,-400.0,0.00044016,120]
[360310544,1746738658598,-401.1,0.00044016,120]
[360310549,1746738658640,-280.0081391,0.00044016,120]
[360310554,1746738658682,-400.0,0.00044016,120]
[360310560,1746738658723,-372.31664404,0.00044016,120]
[360310565,1746738658765,-401.1,0.00044016,120]
[360310570,1746738658805,-400.0,0.00044016,120]
[360310576,1746738658850,-401.1,0.00044016,120]
[360310581,1746738658895,-400.0,0.00044016,120]
[360310587,1746738658939,-401.1,0.00044016,120]
[360310603,1746738659084,-400.0,0.00044016,120]
[360310609,1746738659125,-401.1,0.00044016,120]
[360310614,1746738659165,-400.0,0.00044016,120]
[360310619,1746738659205,-401.1,0.00044016,120]
[360310624,1746738659249,-154.43279356,0.00044016,120]
[360310629,1746738659291,-400.0,0.00044016,120]
[360310635,1746738659332,-401.1,0.00044016,120]
[360310640,1746738659373,-401.1,0.00044016,120]
[360310645,1746738659412,-401.1,0.00044016,120]
[360310650,1746738659452,-519.62982333,0.00044016,120]
[360310655,1746738659492,-401.1,0.00044016,120]
[360310660,1746738659531,-221.12750347,0.00044016,120]
[360310665,1746738659571,-401.1,0.00044016,120]
[360310671,1746738659610,-401.1,0.00044016,120]
[360310676,1746738659648,-401.1,0.00044016,120]
[360310681,1746738659689,-400.0,0.00044016,120]
[360310686,1746738659730,-401.1,0.00044016,120]
[360310691,1746738659770,-400.0,0.00044016,120]
[360310696,1746738659812,-401.1,0.00044016,120]
[360310701,1746738659853,-400.0,0.00044016,120]
[360310706,1746738659894,-451.31207079,0.00044016,120]
[360310712,1746738659935,-400.0,0.00044016,120]
[360310717,1746738659979,-401.1,0.00044016,120]
[360310722,1746738660019,-467.30234716,0.00044016,120]
[360310727,1746738660061,-400.0,0.00044016,120]
[360310733,1746738660103,-400.0,0.00044016,120]
[360310738,1746738660144,-401.1,0.00044016,120]
[360310743,1746738660190,-400.0,0.00044016,120]
[360310748,1746738660234,-400.0,0.00044016,120]
[360310749,1746738660282,-400.0,0.00044016,120]
[360310750,1746738660327,-401.1,0.00044016,120]
[360310754,1746738660372,-400.0,0.00044016,120]
[360310760,1746738660417,-400.0,0.00044016,120]
[360310765,1746738660460,-171.96532295,0.00044016,120]
[360310770,1746738660504,-400.0,0.00044016,120]
[360310775,1746738660546,-401.1,0.00044016,120]
[360310781,1746738660588,-380.72019293,0.00044016,120]
[360310786,1746738660630,-232.0,0.00044016,120]
[360310791,1746738660672,-401.1,0.00044016,120]
[360310797,1746738660715,-401.1,0.00044016,120]
[360310802,1746738660756,-400.0,0.00044016,120]
[360310807,1746738660796,-401.1,0.00044016,120]
[360310812,1746738660837,-400.0,0.00044016,120]
[360310818,1746738660878,-400.0,0.00044016,120]
[360310823,1746738660921,-401.1,0.00044016,120]
[360310828,1746738660963,-400.0,0.00044016,120]
[360310833,1746738661002,-400.0,0.00044016,120]
[360310839,1746738661043,-401.33,0.00044016,120]
[360310844,1746738661084,-416.11709068,0.00044016,120]
[360310845,1746738661126,-400.0,0.00044016,120]
[360310846,1746738661167,-400.0,0.00044016,120]
[360310847,1746738661208,-497.60070808,0.00044016,120]
[360310850,1746738661253,-400.0,0.00044016,120]
[360310855,1746738661296,-400.0,0.00044016,120]
[360310859,1746738661339,-400.0,0.00044016,120]
[360310861,1746738661384,-400.0,0.00044016,120]
[360310863,1746738661428,-400.0,0.00044016,120]
[360310864,1746738661472,-400.0,0.00044016,120]
[360310865,1746738661516,-356.53964816,0.00044016,120]
[360310866,1746738661558,-400.0,0.00044016,120]
[360310867,1746738661600,-400.0,0.00044016,120]
[360310868,1746738661640,-400.0,0.00044016,120]
[360310869,1746738661680,-400.0,0.00044016,120]
[360310870,1746738661723,-400.0,0.00044016,120]
[360310871,1746738661766,-400.0,0.00044016,120]
[360310872,1746738661809,-400.0,0.00044016,120]
[360310873,1746738661851,-400.0,0.00044016,120]
[360310874,1746738661894,-400.0,0.00044016,120]
[360310875,1746738661938,-400.0,0.00044016,120]
[360310876,1746738661985,-400.0,0.00044016,120]
[360310877,1746738662030,-400.0,0.00044016,120]
[360310878,1746738662073,-400.0,0.00044016,120]
[360310879,1746738662116,-400.0,0.00044016,120]
[360310880,1746738662161,-535.11450725,0.00044016,120]
[360310881,1746738662210,-306.35947651,0.00044016,120]
[360310882,1746738662258,-400.0,0.00044016,120]
[360310883,1746738662307,-265.07594591,0.00044016,120]
[360310884,1746738662354,-400.0,0.00044016,120]
[360310885,1746738662401,-400.0,0.00044016,120]
[360310886,1746738662450,-400.0,0.00044016,120]
[360310887,1746738662499,-400.0,0.00044016,120]
[360310888,1746738662547,-400.0,0.00044016,120]
[360310889,1746738662594,-400.0,0.00044016,120]
[360310890,1746738662650,-400.0,0.00044016,120]
[360310891,1746738662719,-400.0,0.00044016,120]
[360310892,1746738662787,-400.0,0.00044016,120]
[360310893,1746738662852,-200.0,0.00044016,120]
[360310894,1746738662918,-400.0,0.00044016,120]
[360310895,1746738662980,-400.0,0.00044016,120]
[360310896,1746738663023,-400.0,0.00044016,120]
[360310897,1746738663068,-400.0,0.00044016,120]
[360310898,1746738663112,-400.0,0.00044016,120]
[360310899,1746738663159,-497.56,0.00044016,120]
[360310900,1746738663208,-485.06386362,0.00044016,120]
[360310901,1746738663258,-400.0,0.00044016,120]
[360310902,1746738663304,-400.0,0.00044016,120]
[360310903,1746738663351,-497.56,0.00044016,120]
[360310904,1746738663397,-400.0,0.00044016,120]
[360310905,1746738663448,-400.0,0.00044016,120]
[360310907,1746738663495,-400.0,0.00044016,120]
[360310908,1746738663542,-497.56,0.00044016,120]
[360310909,1746738663587,-400.0,0.00044016,120]
[360310914,1746738663632,-400.0,0.00044016,120]